bitfinex-derivatives/quotes_ETHF0:USTF0_20250908
["timestamp","ask_amount","ask_price","bid_price","bid_amount"]
[1757316201682,3.3289,4302.0,4301.4,0.3225]
[1757316201683,1.34978731,4301.7,4301.4,0.3225]
[1757316201990,0.7,4301.6,4301.5,0.7306]
[1757316202898,3.5629,4302.0,4301.5,0.7306]
[1757316202899,0.2979,4301.9,4301.8,0.4081]
[1757316203082,0.2979,4301.9,4301.8,0.7306]
[1757316203482,0.4974,4301.9,4301.8,0.7306]
[1757316204094,0.2979,4301.9,4301.8,0.7306]
[1757316204297,0.4974,4301.9,4301.8,0.7306]
[1757316205488,3.2078,4302.0,4301.9,0.3225]
[1757316205691,0.8168,4302.5,4302.2,0.4081]
[1757316205894,1.1147,4302.5,4302.4,0.4081]
[1757316206097,0.8168,4302.5,4302.4,0.7306]
[1757316207196,1.3142,4302.5,4302.4,0.7306]
[1757316207494,0.8275,4302.5,4302.4,0.7306]
[1757316207888,2.17728731,4302.5,4302.4,0.1969]
[1757316208089,2.17728731,4302.5,4302.1,0.234]
[1757316208486,2.17728731,4302.5,4302.2,0.3225]
[1757316208686,2.17728731,4302.5,4302.4,0.1969]
[1757316209393,2.17728731,4302.5,4302.4,0.7306]
[1757316212895,0.7,4302.5,4302.4,0.7306]
[1757316214303,0.7,4302.5,4302.1,0.4309]
[1757316214304,0.7,4302.2,4302.1,0.4309]
[1757316221204,0.7,4302.2,4302.1,0.9425]
[1757316222002,0.4974,4302.2,4302.1,0.9425]
[1757316223503,0.6933,4302.2,4302.1,0.6427]
[1757316225508,0.6933,4302.2,4302.1,0.4309]
[1757316225806,0.6933,4302.2,4302.1,0.234]
[1757316225807,2.04308731,4302.2,4302.1,0.234]
[1757316227110,2.04308731,4302.2,4301.7,0.234]
[1757316227507,1.74518731,4302.2,4301.7,0.5338]
[1757316227709,0.6946,4301.8,4301.7,0.7424]
[1757316227907,0.6946,4301.8,4301.7,0.9542]
[1757316228599,1.7642,4301.8,4301.7,0.9542]
[1757316229314,1.7642,4301.8,4301.7,0.6544]
[1757316230421,1.7642,4301.8,4301.7,0.9542]
[1757316233115,1.7642,4301.8,4301.7,0.6544]
[1757316233318,1.7642,4301.8,4301.7,0.234]
[1757316233518,1.7642,4301.8,4301.7,0.4426]
[1757316234313,1.7642,4301.8,4301.7,0.7424]
[1757316234514,1.7642,4301.8,4301.7,0.9542]
[1757316235321,1.7642,4301.8,4301.7,0.6544]
[1757316235522,1.7642,4301.8,4301.7,0.4426]
[1757316236523,1.7642,4301.8,4301.7,0.7424]
[1757316236818,1.7642,4301.8,4301.7,0.4426]
[1757316237122,1.7642,4301.8,4301.7,0.9542]
[1757316240621,1.7642,4301.8,4301.7,0.6544]
[1757316241324,1.7642,4301.8,4301.7,0.4426]
[1757316244722,1.5683,4301.8,4301.7,0.9542]
[1757316244927,1.7642,4301.8,4301.7,0.9542]
[1757316245724,3.11398731,4301.8,4301.7,0.4426]
[1757316245926,3.11398731,4301.8,4301.7,0.234]
[1757316246825,3.11398731,4301.8,4301.7,0.4487]
[1757316248023,3.11398731,4301.8,4301.7,0.7515]
[1757316248431,2.83480225,4301.8,4301.7,0.7515]
[1757316249332,2.83480225,4301.8,4301.7,0.4487]
[1757316255633,2.83480225,4301.8,4301.7,0.234]
[1757316256335,1.7642,4301.8,4301.7,0.4487]
[1757316256632,2.83480225,4301.8,4301.7,0.4487]
[1757316257535,2.83480225,4301.8,4301.7,0.9491]
[1757316257831,1.0696,4301.8,4301.7,8.1569]
[1757316258034,1.0696,4301.8,4301.7,8.38936]
[1757316258827,1.0696,4301.8,4301.7,8.1569]
[1757316261145,1.0696,4301.8,4301.7,9.82998919]
[1757316264538,1.0696,4301.8,4301.7,8.1569]
[1757316270537,1.0696,4301.8,4301.7,4.1569]
[1757316270851,0.499,4302.5,4302.4,0.7151]
[1757316271152,0.499,4302.5,4302.4,4.1569]
[1757316271548,0.7032,4302.5,4302.4,4.1569]
[1757316277148,0.8215,4302.5,4302.4,4.1569]
[1757316282557,0.7032,4302.5,4302.4,4.1569]
[1757316283445,0.7032,4302.5,4302.4,3.4418]
[1757316283651,0.8215,4302.5,4302.4,4.1501]
[1757316283846,0.7032,4302.5,4302.4,4.1501]
[1757316285055,0.8215,4302.5,4302.4,4.1501]
[1757316286358,1.89210225,4302.5,4302.4,4.1501]
[1757316291561,1.1275,4302.9,4302.5,0.303]
[1757316291765,1.1275,4302.9,4302.8,0.7083]
[1757316291962,1.1275,4302.9,4302.8,2.01290225]
[1757316291963,0.6439,4302.9,4302.8,2.01290225]
[1757316292159,0.313,4303.7,4302.8,1.70990225]
[1757316292160,0.313,4303.6,4302.8,1.70990225]
[1757316292359,0.313,4303.4,4303.3,3.2078]
[1757316292562,0.313,4303.4,4303.3,3.4418]
[1757316299075,0.313,4303.4,4303.3,3.62605873]
[1757316301682,0.313,4303.4,4303.3,3.4418]
[1757316302590,0.5223,4303.4,4303.3,3.4418]
[1757316303194,0.313,4303.4,4303.3,3.4418]
[1757316303582,0.8938,4303.8,4303.3,3.4418]
[1757316303583,0.313,4303.7,4303.3,3.4418]
[1757316303886,0.313,4303.7,4303.4,1.07060225]
[1757316304086,0.313,4303.7,4303.5,0.234]
[1757316304287,0.8938,4303.8,4303.5,0.234]
[1757316304487,0.313,4303.7,4303.5,0.234]
[1757316304688,0.8938,4303.8,4303.5,0.234]
[1757316304884,0.313,4303.7,4303.5,0.234]
[1757316305291,1.1031,4303.8,4303.7,0.0026]
[1757316305491,0.2093,4303.8,4303.7,0.2366]
[1757316305795,0.1253,4304.0,4303.7,1.30720225]
[1757316306188,0.2944,4303.9,4303.7,1.30720225]
[1757316306395,0.2944,4303.9,4303.8,3.2104]
[1757316306896,0.1183,4304.5,4303.8,3.2104]
[1757316307194,0.4956,4304.4,4304.3,3.2104]
[1757316307384,0.2944,4304.4,4304.3,4.51500225]
[1757316308389,0.4956,4304.4,4304.3,4.51500225]
[1757316308998,0.6943,4304.4,4304.3,4.51500225]
[1757316309895,0.2944,4304.4,4304.3,4.51500225]
[1757316310496,0.2944,4304.4,4304.3,3.4444]
[1757316311295,1.3234,4304.7,4304.3,3.4444]
[1757316311488,0.2944,4304.6,4304.3,3.4444]
[1757316311694,1.3234,4304.7,4304.4,0.23232]
[1757316311894,1.029,4304.7,4304.6,1.34945935]
[1757316312091,1.029,4304.7,4304.6,3.24945935]
[1757316312395,1.029,4304.7,4304.6,3.48176935]
[1757316312782,1.029,4304.7,4304.6,3.24945935]
[1757316313195,0.2944,4305.0,4304.6,3.24945935]
[1757316313389,0.1273,4305.0,4304.9,3.2091]
[1757316313592,0.4217,4305.0,4304.9,3.4444]
[1757316316904,0.2944,4305.4,4304.9,3.4444]
[1757316317095,0.4127,4305.5,4304.9,3.4444]
[1757316317396,0.2944,4305.2,4304.9,3.4444]
[1757316317596,0.4956,4305.2,4305.1,0.0026]
[1757316317803,0.4956,4305.2,4305.1,0.2366]
[1757316318701,0.6943,4305.2,4305.1,0.2366]
[1757316319197,0.6943,4305.2,4305.1,0.2353]
[1757316319906,0.6943,4305.2,4305.1,0.234]
[1757316321003,0.6943,4305.2,4305.1,0.2353]
[1757316321400,0.6943,4305.2,4305.1,0.2366]
[1757316326505,0.6943,4305.2,4305.1,0.2353]
[1757316328608,0.6943,4305.2,4305.1,0.234]
[1757316330511,0.1273,4305.0,4304.9,5.1774]
[1757316330715,0.8216,4305.0,4304.9,3.5114]
[1757316330916,0.8216,4305.0,4304.9,3.4418]
[1757316335320,0.8216,4305.0,4304.9,3.4431]
[1757316337020,0.8216,4305.0,4304.9,3.4444]
[1757316338119,0.8216,4305.0,4304.9,5.11487926]
[1757316339419,0.8216,4305.0,4304.9,3.4444]
[1757316339821,0.8216,4305.0,4304.9,4.87657818]
[1757316340011,0.8216,4305.0,4304.9,5.11057818]
[1757316340317,0.8216,4305.0,4304.9,3.4418]
[1757316340619,0.4217,4305.0,4304.9,3.4418]
[1757316341122,0.2944,4305.0,4304.9,3.4418]
[1757316341418,0.5437,4306.5,4306.4,0.1957]
[1757316341620,0.5437,4306.5,4306.4,0.4297]
[1757316343619,0.8437,4306.5,4306.4,0.234]
[1757316344019,0.3,4306.4,4306.2,3.2078]
[1757316344323,0.5437,4306.5,4306.2,3.2078]
[1757316344324,0.7164,4306.3,4306.2,3.2078]
[1757316344516,0.7164,4306.3,4306.2,3.4418]
[1757316345319,0.7164,4306.3,4306.2,3.2078]
[1757316345518,0.4164,4306.3,4306.2,0.234]
[1757316346023,0.7164,4306.3,4306.2,0.234]
[1757316346319,4.7164,4306.3,4306.2,0.234]
[1757316348922,4.7164,4306.3,4306.2,0.9348]
[1757316348923,0.7164,4306.3,4306.2,0.9348]
[1757316349514,0.7164,4306.3,4306.2,0.627]
[1757316349718,0.9098,4306.9,4306.3,0.3078]
[1757316349920,0.9098,4306.9,4306.8,2.04765935]
[1757316349921,0.1934,4306.9,4306.8,2.04765935]
[1757316350126,0.3,4307.4,4306.8,1.97385935]
[1757316350325,0.5153,4307.4,4307.3,3.9086]
[1757316350520,0.5153,4307.5,4307.4,0.7008]
[1757316350724,0.8396,4308.0,4307.9,0.1957]
[1757316350919,0.8396,4308.0,4307.9,0.9358]
[1757316351622,0.8396,4308.0,4307.9,0.4307]
[1757316353023,0.8396,4308.0,4307.5,0.3078]
[1757316353225,0.8396,4308.0,4307.6,0.235]
[1757316353423,0.8396,4308.0,4307.9,0.1957]
[1757316353626,0.8396,4308.0,4307.6,0.235]
[1757316353823,0.8396,4308.0,4307.8,3.2078]
[1757316353824,0.3,4307.9,4307.8,3.2078]
[1757316354127,3.331,4308.5,4308.4,0.393]
[1757316354128,0.3385,4308.5,4308.4,0.393]
[1757316354424,0.8396,4308.5,4308.4,4.1436]
[1757316354921,0.5153,4308.5,4308.4,4.1436]
[1757316355519,0.3,4308.5,4308.4,4.1436]
[1757316355721,0.6853,4308.9,4308.8,0.393]
[1757316355921,0.6853,4308.9,4308.8,0.9358]
[1757316356530,0.8864,4308.9,4308.8,0.9358]
[1757316356738,0.8864,4308.9,4308.8,0.235]
[1757316356939,0.8396,4308.5,4308.4,3.4035]
[1757316357238,0.7164,4308.5,4308.4,5.49045935]
[1757316357940,0.5153,4308.5,4308.4,5.49045935]
[1757316358438,1.85540352,4309.3,4309.2,0.3078]
[1757316358636,1.85540352,4309.3,4309.2,5.49045935]
[1757316358838,1.85540352,4309.3,4309.2,7.39045935]
[1757316359140,2.37070352,4309.3,4309.2,4.1436]
[1757316359542,2.57180352,4309.3,4309.2,3.6008]
[1757316359734,2.57180352,4309.3,4309.2,3.8368]
[1757316360135,2.57180352,4309.3,4309.2,4.1446]
[1757316360834,1.85540352,4309.3,4309.2,5.49145935]
[1757316361038,2.07070352,4309.3,4309.2,5.49145935]
[1757316361231,2.57180352,4309.3,4309.2,3.8368]
[1757316361635,2.57180352,4309.3,4309.2,3.4035]
[1757316361934,2.57180352,4309.3,4309.2,3.4438]
[1757316364140,2.57180352,4309.3,4309.2,3.6395]
[1757316364342,0.5153,4310.2,4310.1,0.393]
[1757316364534,0.1232,4310.5,4310.1,4.1446]
[1757316364738,0.5153,4310.4,4310.3,0.393]
[1757316364933,0.2153,4310.9,4310.8,0.393]
[1757316365139,0.7164,4310.9,4310.8,4.1456]
[1757316365642,0.7164,4310.9,4310.8,3.8378]
[1757316365844,0.7164,4310.9,4310.8,0.63]
[1757316366039,0.7164,4310.9,4310.8,0.9522]
[1757316366341,0.7164,4310.9,4310.8,0.237]
[1757316366844,0.7164,4310.9,4310.6,0.0695]
[1757316367046,0.1203,4310.5,4310.4,0.237]
[1757316367242,0.7472,4309.9,4309.8,3.2078]
[1757316367444,0.7472,4309.9,4309.8,3.4448]
[1757316367645,0.7472,4309.9,4309.3,3.2078]
[1757316367943,0.3209,4309.4,4309.3,0.237]
[1757316368152,0.7472,4309.4,4309.3,0.237]
[1757316368646,0.5354,4309.7,4309.6,0.7317]
[1757316368843,0.7472,4309.7,4309.6,0.6465]
[1757316369044,0.7472,4309.7,4309.6,0.237]
[1757316369241,0.3209,4309.1,4308.6,3.2078]
[1757316369446,0.7472,4308.7,4308.6,3.9395]
[1757316369644,3.3281,4311.0,4309.4,0.3222]
[1757316369947,3.3281,4311.0,4310.3,0.3222]
[1757316370147,3.7544,4311.0,4310.9,0.2148]
[1757316370540,3.6341,4311.0,4310.9,0.537]
[1757316371652,3.955,4311.0,4310.9,0.537]
[1757316374239,3.6341,4311.0,4310.8,0.238]
[1757316374439,0.7472,4310.9,4310.8,0.238]
[1757316374646,3.3281,4311.0,4310.4,0.237]
[1757316374647,0.5419,4310.5,4310.4,0.237]
[1757316374845,0.8628,4310.5,4310.4,0.237]
[1757316376652,0.4263,4310.2,4310.1,0.237]
[1757316376953,0.7472,4310.2,4310.1,0.774]
[1757316377554,0.7472,4310.2,4310.1,0.9687]
[1757316377955,0.3209,4310.9,4310.2,0.3222]
[1757316378350,0.2145,4310.3,4310.2,0.7317]
[1757316378542,0.7472,4310.3,4310.2,0.7317]
[1757316381456,0.3209,4309.5,4309.3,0.3222]
[1757316381651,0.7472,4309.4,4309.3,0.7317]
[1757316381854,0.4412,4310.0,4309.4,0.3222]
[1757316382045,0.4412,4310.0,4309.3,0.4095]
[1757316382046,0.7472,4310.0,4309.9,0.2148]
[1757316382354,0.7472,4310.0,4309.9,0.7317]
[1757316382748,0.7472,4310.0,4309.9,0.537]
[1757316383151,1.29467049,4310.0,4309.9,0.2148]
[1757316383554,1.29467049,4310.0,4309.9,0.537]
[1757316386050,1.29467049,4310.0,4309.9,0.7317]
[1757316386256,1.29467049,4310.0,4309.9,0.537]
[1757316386757,0.97377049,4310.0,4309.9,0.7317]
[1757316386959,1.29467049,4310.0,4309.9,0.7317]
[1757316387958,0.97377049,4310.0,4309.9,0.7317]
[1757316388554,3.2078,4310.5,4310.4,0.4095]
[1757316388760,3.2078,4310.5,4310.4,0.7317]
[1757316389053,3.4223,4310.5,4310.4,0.7317]
[1757316389559,0.2145,4310.5,4310.4,0.7317]
[1757316391457,0.3209,4310.4,4310.3,0.3222]
[1757316391656,1.29557341,4310.4,4310.3,0.7317]
[1757316391859,0.7472,4310.4,4310.3,0.7317]
[1757316392660,3.2078,4310.7,4310.5,0.1279]
[1757316392856,0.7472,4311.0,4310.9,0.537]
[1757316393056,1.29556902,4311.0,4310.9,0.7317]
[1757316393251,1.09026902,4311.0,4310.2,0.5592]
[1757316393563,3.5287,4310.7,4310.5,0.1279]
[1757316393860,0.97466902,4310.6,4310.5,0.8596]
[1757316394057,0.7472,4310.6,4310.5,0.8596]
[1757316394557,0.4263,4310.6,4310.5,0.8596]
[1757316395151,0.7472,4310.6,4310.5,0.8596]
[1757316395356,0.7472,4310.6,4310.5,0.7317]
[1757316395756,0.4263,4310.6,4310.5,0.8486]
[1757316396161,0.2145,4310.6,4310.5,0.8486]
[1757316396558,0.3227,4311.0,4310.6,0.3229]
[1757316396762,0.2104,4311.0,4310.9,0.7292]
[1757316396960,0.5484774,4311.4,4311.3,0.4063]
[1757316397256,3.6248,4311.8,4311.7,0.7292]
[1757316397462,3.9475,4311.8,4311.0,0.1169]
[1757316397663,0.3227,4311.7,4311.3,0.3229]
[1757316397864,0.5331,4311.7,4311.6,0.1977]
[1757316398058,0.7397,4311.7,4311.6,0.5206]
[1757316398254,0.7397,4311.7,4311.2,0.5599]
[1757316398567,0.417,4310.9,4310.8,0.5599]
[1757316398768,0.3227,4310.8,4310.4,0.237]
[1757316398967,0.417,4310.5,4310.4,0.7576]
[1757316399263,0.3227,4310.4,4310.0,0.3229]
[1757316399561,3.6248,4310.1,4310.0,0.7576]
[1757316399965,3.9475,4310.1,4310.0,0.7576]
[1757316400762,0.7397,4309.5,4309.4,0.2229]
[1757316401060,0.2104,4309.5,4309.4,0.7544]
[1757316401264,0.7397,4310.0,4309.9,0.5206]
[1757316401468,1.28590209,4310.0,4309.9,0.5206]
[1757316402560,0.3227,4309.9,4309.6,0.3229]
[1757316402762,0.86,4309.5,4309.4,0.0252]
[1757316402968,4.3058,4309.5,4309.4,0.0252]
[1757316403468,4.8518069,4309.5,4309.4,0.0252]
[1757316403665,4.8518069,4309.5,4308.6,3.5307]
[1757316403862,0.7397,4308.7,4308.3,0.238]
[1757316404069,0.3227,4308.6,4308.3,0.5609]
[1757316404270,0.7397,4308.4,4308.3,0.7586]
[1757316404476,0.7397,4308.4,4308.3,0.9672]
[1757316405558,0.7397,4308.4,4308.3,0.4357]
[1757316406473,0.7397,4308.4,4308.3,0.7586]
[1757316406671,0.7397,4308.4,4308.3,0.9672]
[1757316412775,0.417,4308.4,4308.3,0.9672]
[1757316412980,0.7397,4308.4,4308.3,0.9672]
[1757316413977,0.417,4308.4,4308.3,0.9672]
[1757316414980,0.417,4308.9,4308.8,0.7292]
[1757316415680,0.3227,4309.4,4308.9,0.3229]
[1757316415873,0.7397,4309.4,4309.3,0.5206]
[1757316417678,0.3227,4309.3,4309.1,0.3229]
[1757316417882,0.3227,4309.3,4308.5,0.1169]
[1757316417883,0.2104,4308.7,4308.6,0.7292]
[1757316418386,0.7397,4308.7,4308.6,0.7292]
[1757316419476,0.417,4308.7,4308.6,0.7292]
[1757316419783,0.9767,4309.4,4309.3,0.5206]
[1757316420279,0.3227,4309.3,4308.6,0.3229]
[1757316420488,0.5331,4309.3,4309.2,0.1977]
[1757316420680,0.5331,4309.3,4309.2,0.5206]
[1757316420681,0.7397,4309.3,4309.2,0.5206]
[1757316421380,0.417,4309.3,4309.2,0.7292]
[1757316421785,0.7397,4309.3,4309.2,0.7292]
[1757316422588,0.7397,4309.3,4309.2,0.5206]
[1757316422981,0.7397,4309.3,4309.2,0.7292]
[1757316423286,3.4182,4309.6,4309.5,0.8461]
[1757316423484,3.2078,4309.6,4309.5,0.8461]
[1757316423683,3.4182,4310.1,4310.0,0.8461]
[1757316424389,3.9475,4310.1,4310.0,0.8461]
[1757316425589,3.9475,4310.1,4310.0,0.5206]
[1757316427784,3.6248,4310.1,4309.5,3.3247]
[1757316427993,0.7126,4309.6,4309.5,3.2078]
[1757316428186,0.7126,4309.6,4309.5,3.73]
[1757316428690,0.7126,4309.6,4309.5,3.9343]
[1757316428886,0.7126,4309.6,4309.2,0.3114]
[1757316429092,0.304,4309.2,4309.1,0.5484]
[1757316429289,0.304,4309.2,4309.1,0.7592]
[1757316429290,0.7126,4309.2,4309.1,0.7592]
[1757316430185,0.7126,4309.2,4309.1,0.9635]
[1757316432290,0.7126,4309.2,4309.1,0.7592]
[1757316432489,0.7126,4309.2,4309.1,0.237]
[1757316432687,0.7126,4309.2,4309.1,0.7592]
[1757316433685,0.7126,4309.2,4309.1,0.5222]
[1757316434487,0.7126,4309.2,4309.1,0.7265]
[1757316434788,0.5019,4310.2,4310.1,0.7265]
[1757316434995,1.25895858,4310.2,4309.6,0.3114]
[1757316435195,0.85035858,4310.1,4309.6,0.7265]
[1757316435500,0.7126,4310.1,4310.0,0.2108]
[1757316435794,1.25892315,4310.1,4310.0,0.5222]
[1757316436493,1.25892315,4310.1,4310.0,0.7265]
[1757316436990,0.304,4309.5,4309.3,3.2078]
[1757316437189,0.7126,4309.5,4309.4,0.4151]
[1757316437593,0.4086,4309.5,4309.4,0.7265]
[1757316438389,0.304,4309.4,4309.2,0.3114]
[1757316438595,0.304,4309.4,4309.3,0.2108]
[1757316438792,0.7126,4309.4,4309.3,0.5222]
[1757316439094,0.7126,4309.4,4309.3,0.7265]
[1757316439293,3.2078,4309.7,4309.5,0.1278]
[1757316439594,3.9204,4309.7,4309.6,0.7265]
[1757316442293,3.9204,4309.7,4309.6,0.2108]
[1757316442485,3.9204,4309.7,4309.2,0.4151]
[1757316442486,0.1979,4309.3,4309.2,0.4151]
[1757316442686,0.4086,4309.3,4309.2,0.7265]
[1757316443287,0.7126,4309.3,4309.2,0.7265]
[1757316445596,0.1979,4309.3,4309.2,0.7265]
[1757316445796,0.1979,4309.6,4309.5,0.8543]
[1757316446192,0.7126,4309.6,4309.5,0.8543]
[1757316446396,0.7126,4309.6,4309.5,0.7265]
[1757316446889,0.7126,4309.6,4309.5,0.5222]
[1757316447090,0.4086,4309.2,4309.1,0.4478]
[1757316447393,0.304,4309.1,4308.7,3.2774]
[1757316447598,0.1168,4309.5,4308.7,3.2774]
[1757316447599,0.4086,4308.8,4308.7,4.0039]
[1757316448098,0.1979,4308.8,4308.7,3.9343]
[1757316448788,0.4086,4309.3,4309.2,0.2108]
[1757316448985,3.2078,4309.7,4309.6,0.4151]
[1757316449191,4.70446759,4309.7,4309.6,0.7265]
[1757316449392,4.46746759,4309.7,4309.6,0.7265]
[1757316451796,3.75486759,4309.7,4309.6,0.7265]
[1757316452202,3.95276759,4309.7,4309.6,0.7265]
[1757316452504,4.46746759,4309.7,4309.6,0.7265]
[1757316452998,4.16346759,4309.7,4309.6,0.7265]
[1757316454204,3.6164,4309.7,4309.6,0.7265]
[1757316455800,0.4086,4309.7,4309.6,0.7265]
[1757316456205,0.7094,4309.7,4309.6,0.5222]
[1757316456500,0.1174,4309.5,4309.4,0.0696]
[1757316456705,0.8123,4309.5,4309.4,0.0696]
[1757316456901,0.5115,4309.5,4309.4,0.1982]
[1757316457101,0.6949,4309.5,4309.4,0.5212]
[1757316457699,0.6949,4309.5,4309.4,0.7307]
[1757316458210,0.1983,4309.5,4309.4,0.7307]
[1757316458408,0.6949,4309.9,4309.8,0.7307]
[1757316458705,1.24237605,4309.9,4309.8,0.7307]
[1757316459205,0.3008,4309.8,4309.7,0.1982]
[1757316459408,1.24237605,4309.8,4309.7,0.1982]
[1757316459600,0.54747605,4309.8,4309.7,0.4077]
[1757316459802,0.74577605,4309.8,4309.7,0.7307]
[1757316460102,0.94157605,4309.8,4309.7,0.7307]
[1757316460808,1.24237605,4309.8,4309.7,0.7307]
[1757316462204,1.24237605,4309.8,4309.5,0.3926]
[1757316462507,1.24237605,4309.7,4309.6,0.5212]
[1757316463304,1.24237605,4309.7,4309.6,0.7307]
[1757316464608,1.24237605,4309.7,4309.5,0.0696]
[1757316464806,0.6949,4309.7,4309.5,0.0696]
[1757316466009,0.6949,4308.8,4308.7,3.729]
[1757316466710,0.3941,4308.8,4308.7,3.9385]
[1757316468112,0.6949,4308.8,4308.7,3.9385]
[1757316469212,0.6949,4308.8,4308.7,3.2078]
[1757316469913,8.68211857,4308.8,4308.3,0.236]
[1757316470110,0.6949,4308.4,4308.3,0.7572]
[1757316470305,0.6949,4308.4,4308.3,0.5212]
[1757316470606,0.3941,4308.4,4307.9,3.6004]
[1757316470803,0.6949,4308.0,4307.9,0.5908]
[1757316471006,0.6949,4308.0,4307.9,0.8003]
[1757316471405,0.6949,4308.0,4307.9,0.5908]
[1757316471611,0.8123,4308.0,4307.9,0.0696]
[1757316472308,0.6949,4308.0,4307.9,0.3926]
[1757316472611,0.3941,4308.0,4307.9,0.8003]
[1757316472811,0.6949,4308.0,4307.9,0.8003]
[1757316473410,0.6949,4308.0,4307.9,0.7307]
[1757316473713,3.2078,4308.2,4308.0,0.1204]
[1757316473908,3.2078,4308.2,4308.1,0.7307]
[1757316474713,3.4061,4308.2,4308.1,0.7307]
[1757316476114,3.9027,4308.2,4308.1,0.5212]
[1757316476315,5.24787796,4308.2,4308.1,0.5212]
[1757316477316,4.94707796,4308.2,4307.8,0.323]
[1757316477507,2.04007796,4308.1,4308.0,0.1982]
[1757316477709,2.04007796,4308.1,4308.0,0.5212]
[1757316478412,0.3008,4308.0,4307.7,0.559]
[1757316478715,0.6949,4307.8,4307.7,0.9667]
[1757316479618,1.34517796,4308.1,4308.0,0.1204]
[1757316479819,2.04007796,4308.1,4308.0,0.8511]
[1757316481419,0.3008,4308.0,4307.8,0.323]
[1757316481613,0.6949,4307.9,4307.8,0.5212]
[1757316481813,0.3941,4307.9,4307.8,0.7307]
[1757316482212,0.6949,4307.9,4307.8,0.7307]
[1757316483012,0.6949,4307.9,4307.7,0.236]
[1757316483207,0.3008,4307.8,4307.7,0.236]
[1757316483407,0.6949,4307.8,4307.5,0.323]
[1757316483613,0.3941,4307.4,4307.3,0.323]
[1757316483819,0.3941,4307.4,4307.3,0.7307]
[1757316484020,0.3534,4308.0,4307.4,0.323]
[1757316484021,1.58117796,4308.0,4307.4,0.323]
[1757316484223,2.27607796,4308.0,4307.9,0.7307]
[1757316485017,0.3941,4308.0,4307.9,0.7307]
[1757316485218,2.04007796,4308.0,4307.9,0.7307]
[1757316486523,2.04007796,4308.0,4307.9,0.5212]
[1757316486813,0.4196,4307.7,4307.6,0.2038]
[1757316487120,0.738,4307.7,4307.6,0.7216]
[1757316488319,0.738,4307.7,4307.6,0.5069]
[1757316488620,0.738,4307.7,4307.6,0.3031]
[1757316488914,0.738,4307.7,4307.1,0.0696]
[1757316489121,0.738,4307.4,4307.3,0.5069]
[1757316489519,0.738,4307.4,4307.3,0.7216]
[1757316490209,0.4196,4307.4,4307.3,0.7216]
[1757316491714,0.738,4307.4,4306.8,0.236]
[1757316492014,0.738,4307.2,4307.1,0.5069]
[1757316492219,2.08317796,4307.2,4307.1,0.7216]
[1757316492420,1.8771954,4307.2,4307.1,0.7216]
[1757316493213,1.8771954,4307.2,4307.1,0.5069]
[1757316493411,1.5587954,4307.2,4306.9,0.5391]
[1757316493619,0.738,4307.0,4306.9,0.7429]
[1757316493822,0.4196,4307.0,4306.9,0.9576]
[1757316495120,1.1391954,4307.2,4307.1,0.3031]
[1757316495324,1.8771954,4307.2,4307.1,0.7216]
[1757316495623,1.8771954,4307.2,4307.1,0.5069]
[1757316496319,1.5587954,4307.2,4307.1,0.7216]
[1757316496722,3.2078,4307.5,4307.1,0.7216]
[1757316496922,1.1391954,4307.3,4307.2,0.3031]
[1757316497121,1.5587954,4307.3,4307.2,0.7216]
[1757316497627,1.8771954,4307.3,4307.2,0.7216]
[1757316500827,1.5587954,4307.3,4307.2,0.7216]
[1757316501226,1.8771954,4307.3,4307.2,0.7216]
[1757316501522,0.4196,4307.3,4307.2,0.7216]
[1757316501723,0.2072,4307.3,4307.2,0.7216]
[1757316502122,3.651,4308.0,4307.9,0.4185]
[1757316502321,4.41033263,4308.0,4307.9,0.7216]
[1757316502520,4.17433263,4308.0,4307.9,0.7216]
[1757316504729,4.49273263,4308.0,4307.9,0.7216]
[1757316507238,4.61003263,4308.0,4307.6,0.3031]
[1757316507529,1.5587954,4307.6,4307.5,0.5385]
[1757316507928,1.5587954,4307.6,4307.5,0.8416]
[1757316508529,1.8771954,4307.6,4307.2,3.2078]
[1757316508737,1.8771954,4307.3,4307.2,3.2078]
[1757316509035,1.5587954,4307.3,4307.0,0.0696]
[1757316509327,0.738,4307.2,4307.1,0.5069]
[1757316509722,0.2072,4307.2,4307.1,0.7216]
[1757316510334,0.4196,4307.2,4307.1,0.7216]
[1757316510539,0.5544,4307.5,4307.1,0.7216]
[1757316510726,1.4575954,4307.5,4307.2,0.3031]
[1757316510928,1.8771954,4307.5,4307.4,0.7216]
[1757316511128,0.2072,4307.5,4307.4,0.7216]
[1757316511534,1.3463954,4307.5,4307.4,0.7216]
[1757316512430,3.6274,4308.0,4307.9,0.4185]
[1757316512634,5.63235176,4308.0,4307.9,0.7216]
[1757316514040,5.75005176,4308.0,4307.4,0.3031]
[1757316514227,0.4196,4307.5,4307.4,0.5069]
[1757316514430,3.2078,4308.0,4307.5,0.12]
[1757316514636,1.8771954,4308.4,4308.3,0.4185]
[1757316514836,2.10616071,4308.4,4308.3,0.7216]
[1757316515136,2.42456071,4308.4,4308.3,0.7216]
[1757316517845,0.96696531,4308.4,4308.3,0.7216]
[1757316520242,0.4196,4308.4,4308.3,0.7216]
[1757316521144,0.7386,4308.4,4308.3,0.7216]
[1757316521842,0.2072,4308.4,4308.3,0.7216]
[1757316522142,1.3463954,4308.4,4308.3,0.7216]
[1757316522339,1.5568954,4308.4,4308.3,0.7216]
[1757316522546,1.8758954,4308.4,4308.3,0.7216]